Workbook

Sheet Investment
B2: Investments (individual items > 800 EUR) | D2: 2023 | J2: =+D2+1 -> 2024 | N2: =+J2+1 -> 2025 | R2: =+N2+1 -> 2026 | V2: =+R2+1 -> 2027 | Z2: =+V2+1 -> 2028
B3: in TEUR | D3: Amount | E3: Unit Costs | F3: Total Costs | G3: Purchase Date | H3: Date of use | J3: Amount | K3: Unit Costs | L3: Total Costs | N3: Amount | O3: Unit Costs | P3: Total Costs | R3: Amount | S3: Unit Costs | T3: Total Costs | V3: Amount | W3: Unit Costs | X3: Total Costs | Z3: Amount | AA3: Unit Costs | AB3: Total Costs
B5: PCs | D5: 10 | E5: 1.2 | F5: =+E5*D5 -> 12 | G5: 2023-07-01 | H5: 2023-07-01 | J5: 10 | K5: 1 | L5: =+K5*J5 -> 12 | N5: 15 | O5: 1.2 | P5: =+O5*N5 -> 18 | R5: 20 | S5: 1.2 | T5: =+S5*R5 -> 24 | V5: 20 | W5: 1.2 | X5: =+W5*V5 -> 24 | Z5: 20 | AA5: 1.2 | AB5: =+AA5*Z5 -> 24
B6: ERP software license | D6: 10 | E6: 3 | F6: =+E6*D6 -> 25 | G6: 2023-04-01 | H6: 2023-06-01 | J6: 10 | K6: 3 | L6: =+K6*J6 -> 25 | N6: 15 | O6: 3 | P6: =+O6*N6 -> 38 | R6: 20 | S6: 3 | T6: =+S6*R6 -> 50 | V6: 20 | W6: 3 | X6: =+W6*V6 -> 50 | Z6: 20 | AA6: 3 | AB6: =+AA6*Z6 -> 50
B7: Office Equipment | D7: 2 | E7: 2 | F7: =+E7*D7 -> 3 | G7: 2023-07-01 | H7: 2023-07-01 | J7: 2 | K7: 2 | L7: =+K7*J7 -> 3 | N7: 2 | O7: 2 | P7: =+O7*N7 -> 3 | R7: 2 | S7: 2 | T7: =+S7*R7 -> 3 | V7: 2 | W7: 2 | X7: =+W7*V7 -> 3 | Z7: 2 | AA7: 2 | AB7: =+AA7*Z7 -> 3
B8: Car | D8: 1 | E8: 55 | F8: =+E8*D8 -> 55 | G8: 2023-07-01 | H8: 2023-07-01 | J8: 1 | K8: 55 | L8: =+K8*J8 -> 55 | N8: 1 | O8: 55 | P8: =+O8*N8 -> 55 | R8: 1 | S8: 55 | T8: =+S8*R8 -> 55 | V8: 1 | W8: 55 | X8: =+W8*V8 -> 55 | Z8: 1 | AA8: 55 | AB8: =+AA8*Z8 -> 55
B9: IDE Licenses | D9: 20 | E9: 1 | F9: =+E9*D9 -> 20 | G9: 2023-07-01 | H9: 2023-07-01 | J9: 20 | K9: 1 | L9: =+K9*J9 -> 20 | N9: 20 | O9: 1 | P9: =+O9*N9 -> 20 | R9: 20 | S9: 1 | T9: =+S9*R9 -> 20 | V9: 20 | W9: 1 | X9: =+W9*V9 -> 20 | Z9: 20 | AA9: 1 | AB9: =+AA9*Z9 -> 20
F10: =+E10*D10 -> 0 | L10: =+K10*J10 -> 0 | P10: =+O10*N10 -> 0 | T10: =+S10*R10 -> 0 | X10: =+W10*V10 -> 0 | AB10: =+AA10*Z10 -> 0
F11: =+E11*D11 -> 0 | L11: =+K11*J11 -> 0 | P11: =+O11*N11 -> 0 | T11: =+S11*R11 -> 0 | X11: =+W11*V11 -> 0 | AB11: =+AA11*Z11 -> 0
F12: =+E12*D12 -> 0 | L12: =+K12*J12 -> 0 | P12: =+O12*N12 -> 0 | T12: =+S12*R12 -> 0 | X12: =+W12*V12 -> 0 | AB12: =+AA12*Z12 -> 0
F13: =+E13*D13 -> 0 | L13: =+K13*J13 -> 0 | P13: =+O13*N13 -> 0 | T13: =+S13*R13 -> 0 | X13: =+W13*V13 -> 0 | AB13: =+AA13*Z13 -> 0
F14: =+E14*D14 -> 0 | L14: =+K14*J14 -> 0 | P14: =+O14*N14 -> 0 | T14: =+S14*R14 -> 0 | X14: =+W14*V14 -> 0 | AB14: =+AA14*Z14 -> 0
F15: =+E15*D15 -> 0 | L15: =+K15*J15 -> 0 | P15: =+O15*N15 -> 0 | T15: =+S15*R15 -> 0 | X15: =+W15*V15 -> 0 | AB15: =+AA15*Z15 -> 0
F16: =+E16*D16 -> 0 | L16: =+K16*J16 -> 0 | P16: =+O16*N16 -> 0 | T16: =+S16*R16 -> 0 | X16: =+W16*V16 -> 0 | AB16: =+AA16*Z16 -> 0
F17: =+E17*D17 -> 0 | L17: =+K17*J17 -> 0 | P17: =+O17*N17 -> 0 | T17: =+S17*R17 -> 0 | X17: =+W17*V17 -> 0 | AB17: =+AA17*Z17 -> 0
F18: =+E18*D18 -> 0 | L18: =+K18*J18 -> 0 | P18: =+O18*N18 -> 0 | T18: =+S18*R18 -> 0 | X18: =+W18*V18 -> 0 | AB18: =+AA18*Z18 -> 0
F19: =+E19*D19 -> 0 | L19: =+K19*J19 -> 0 | P19: =+O19*N19 -> 0 | T19: =+S19*R19 -> 0 | X19: =+W19*V19 -> 0 | AB19: =+AA19*Z19 -> 0
F20: =+E20*D20 -> 0 | L20: =+K20*J20 -> 0 | P20: =+O20*N20 -> 0 | T20: =+S20*R20 -> 0 | X20: =+W20*V20 -> 0 | AB20: =+AA20*Z20 -> 0
F21: =+E21*D21 -> 0 | L21: =+K21*J21 -> 0 | P21: =+O21*N21 -> 0 | T21: =+S21*R21 -> 0 | X21: =+W21*V21 -> 0 | AB21: =+AA21*Z21 -> 0
F22: =+E22*D22 -> 0 | L22: =+K22*J22 -> 0 | P22: =+O22*N22 -> 0 | T22: =+S22*R22 -> 0 | X22: =+W22*V22 -> 0 | AB22: =+AA22*Z22 -> 0
F23: =+E23*D23 -> 0 | L23: =+K23*J23 -> 0 | P23: =+O23*N23 -> 0 | T23: =+S23*R23 -> 0 | X23: =+W23*V23 -> 0 | AB23: =+AA23*Z23 -> 0
F24: =+E24*D24 -> 0 | L24: =+K24*J24 -> 0 | P24: =+O24*N24 -> 0 | T24: =+S24*R24 -> 0 | X24: =+W24*V24 -> 0 | AB24: =+AA24*Z24 -> 0
F25: =+E25*D25 -> 0 | L25: =+K25*J25 -> 0 | P25: =+O25*N25 -> 0 | T25: =+S25*R25 -> 0 | X25: =+W25*V25 -> 0 | AB25: =+AA25*Z25 -> 0
F26: =+E26*D26 -> 0 | L26: =+K26*J26 -> 0 | P26: =+O26*N26 -> 0 | T26: =+S26*R26 -> 0 | X26: =+W26*V26 -> 0 | AB26: =+AA26*Z26 -> 0
F27: =+E27*D27 -> 0 | L27: =+K27*J27 -> 0 | P27: =+O27*N27 -> 0 | T27: =+S27*R27 -> 0 | X27: =+W27*V27 -> 0 | AB27: =+AA27*Z27 -> 0
F28: =+E28*D28 -> 0 | L28: =+K28*J28 -> 0 | P28: =+O28*N28 -> 0 | T28: =+S28*R28 -> 0 | X28: =+W28*V28 -> 0 | AB28: =+AA28*Z28 -> 0
F29: =+E29*D29 -> 0 | L29: =+K29*J29 -> 0 | P29: =+O29*N29 -> 0 | T29: =+S29*R29 -> 0 | X29: =+W29*V29 -> 0 | AB29: =+AA29*Z29 -> 0
F30: =+E30*D30 -> 0 | L30: =+K30*J30 -> 0 | P30: =+O30*N30 -> 0 | T30: =+S30*R30 -> 0 | X30: =+W30*V30 -> 0 | AB30: =+AA30*Z30 -> 0
F31: =+E31*D31 -> 0 | L31: =+K31*J31 -> 0 | P31: =+O31*N31 -> 0 | T31: =+S31*R31 -> 0 | X31: =+W31*V31 -> 0 | AB31: =+AA31*Z31 -> 0
F32: =+E32*D32 -> 0 | L32: =+K32*J32 -> 0 | P32: =+O32*N32 -> 0 | T32: =+S32*R32 -> 0 | X32: =+W32*V32 -> 0 | AB32: =+AA32*Z32 -> 0
F33: =+E33*D33 -> 0 | L33: =+K33*J33 -> 0 | P33: =+O33*N33 -> 0 | T33: =+S33*R33 -> 0 | X33: =+W33*V33 -> 0 | AB33: =+AA33*Z33 -> 0
F34: =+E34*D34 -> 0 | L34: =+K34*J34 -> 0 | P34: =+O34*N34 -> 0 | T34: =+S34*R34 -> 0 | X34: =+W34*V34 -> 0 | AB34: =+AA34*Z34 -> 0
F35: =+E35*D35 -> 0 | L35: =+K35*J35 -> 0 | P35: =+O35*N35 -> 0 | T35: =+S35*R35 -> 0 | X35: =+W35*V35 -> 0 | AB35: =+AA35*Z35 -> 0
F36: =+E36*D36 -> 0 | L36: =+K36*J36 -> 0 | P36: =+O36*N36 -> 0 | T36: =+S36*R36 -> 0 | X36: =+W36*V36 -> 0 | AB36: =+AA36*Z36 -> 0
F37: =+E37*D37 -> 0 | L37: =+K37*J37 -> 0 | P37: =+O37*N37 -> 0 | T37: =+S37*R37 -> 0 | X37: =+W37*V37 -> 0 | AB37: =+AA37*Z37 -> 0
F38: =+E38*D38 -> 0 | L38: =+K38*J38 -> 0 | P38: =+O38*N38 -> 0 | T38: =+S38*R38 -> 0 | X38: =+W38*V38 -> 0 | AB38: =+AA38*Z38 -> 0
F39: =+E39*D39 -> 0 | L39: =+K39*J39 -> 0 | P39: =+O39*N39 -> 0 | T39: =+S39*R39 -> 0 | X39: =+W39*V39 -> 0 | AB39: =+AA39*Z39 -> 0
F40: =+E40*D40 -> 0 | L40: =+K40*J40 -> 0 | P40: =+O40*N40 -> 0 | T40: =+S40*R40 -> 0 | X40: =+W40*V40 -> 0 | AB40: =+AA40*Z40 -> 0
F41: =+E41*D41 -> 0 | L41: =+K41*J41 -> 0 | P41: =+O41*N41 -> 0 | T41: =+S41*R41 -> 0 | X41: =+W41*V41 -> 0 | AB41: =+AA41*Z41 -> 0
F42: =+E42*D42 -> 0 | L42: =+K42*J42 -> 0 | P42: =+O42*N42 -> 0 | T42: =+S42*R42 -> 0 | X42: =+W42*V42 -> 0 | AB42: =+AA42*Z42 -> 0
F43: =+E43*D43 -> 0 | L43: =+K43*J43 -> 0 | P43: =+O43*N43 -> 0 | T43: =+S43*R43 -> 0 | X43: =+W43*V43 -> 0 | AB43: =+AA43*Z43 -> 0
F44: =+E44*D44 -> 0 | L44: =+K44*J44 -> 0 | P44: =+O44*N44 -> 0 | T44: =+S44*R44 -> 0 | X44: =+W44*V44 -> 0 | AB44: =+AA44*Z44 -> 0
F45: =+E45*D45 -> 0 | L45: =+K45*J45 -> 0 | P45: =+O45*N45 -> 0 | T45: =+S45*R45 -> 0 | X45: =+W45*V45 -> 0 | AB45: =+AA45*Z45 -> 0
B47: Total | E47: =+SUM(E5:E46) -> 61 | F47: =+SUM(F5:F46) -> 115 | K47: =+SUM(K5:K46) -> 61 | L47: =+SUM(L5:L46) -> 115 | O47: =+SUM(O5:O46) -> 61 | P47: =+SUM(P5:P46) -> 134 | S47: =+SUM(S5:S46) -> 61 | T47: =+SUM(T5:T46) -> 152 | W47: =+SUM(W5:W46) -> 61 | X47: =+SUM(X5:X46) -> 152 | AA47: =+SUM(AA5:AA46) -> 61 | AB47: =+SUM(AB5:AB46) -> 152
